fUST/lending_fUST_20251014
["ID","MTS","AMOUNT","RATE_DAILY","PERIOD"]
[391132173,1760383839821,-161.1,0.0002198,3]
[391132174,1760383839830,-483.33,0.0002198,3]
[391132175,1760383839839,-500.0,0.00021989,2]
[391132176,1760383839849,-69736.97644758,0.0002199,2]
[391132177,1760383839858,-605.04,0.00021992,2]
[391132178,1760383839867,-3265.75211282,0.00022081,2]
[391132179,1760383839876,-195.0,0.00022257,2]
[391132180,1760383839886,-500.0,0.00022263,2]
[391132181,1760383839896,-500.0,0.00022273,2]
[391132182,1760383839905,-3265.75211282,0.00022276,2]
[391132183,1760383839914,-151.0,0.000223,10]
[391132184,1760383839923,-151.0,0.000224,5]
[391132185,1760383839932,-477.489661,0.00022445,2]
[391132186,1760383839942,-3265.75211282,0.00022471,2]
[391132187,1760383839952,-1000.0,0.00022521,2]
[391132189,1760383839961,-909.9103973,0.00022521,2]
[391132191,1760383839971,-501.28166365,0.00022521,2]
[391132193,1760383839980,-1070.57923767,0.00022521,2]
[391132195,1760383839989,-1000.0,0.00022521,2]
[391132197,1760383839998,-1000.0,0.00022521,2]
[391132198,1760383840007,-1002.19854572,0.00022521,2]
[391132200,1760383840016,-1000.0,0.00022521,2]
[391132201,1760383840025,-381.43629838,0.00022521,2]
[391132202,1760383840035,-1000.0,0.00022521,2]
[391132203,1760383840044,-1000.0,0.00022521,2]
[391132204,1760383840053,-1000.0,0.00022521,2]
[391132205,1760383840062,-1000.0,0.00022521,2]
[391132206,1760383840071,-1000.0,0.00022521,2]
[391132207,1760383840080,-1000.0,0.00022521,2]
[391132208,1760383840088,-1000.0,0.00022521,2]
[391132209,1760383840097,-500.0,0.00022521,2]
[391132210,1760383840106,-1000.0,0.00022521,2]
[391132211,1760383840115,-500.0,0.00022537,2]
[391132212,1760383840124,-151.0,0.000226,7]
[391132213,1760383840133,-400.0,0.000226,2]
[391132214,1760383840142,-402.34485587,0.00022662,10]
[391132215,1760383840152,-19912.58577009,0.00022665,2]
[391132216,1760383840161,-3265.75211282,0.00022666,2]
[391132217,1760383840170,-1000.0,0.00022745,2]
[391132219,1760383840179,-579.87627815,0.00022765,2]
[391132221,1760383840189,-424.63480882,0.00022765,2]
[391132222,1760383840198,-500.0,0.00022765,2]
[391132224,1760383840207,-154.775544,0.00022766,7]
[391132226,1760383840217,-154.775544,0.00022766,7]
[391132227,1760383840225,-154.775544,0.00022766,7]
[391132228,1760383840234,-154.775544,0.00022766,7]
[391132230,1760383840244,-151.0,0.00022766,7]
[391132231,1760383840252,-151.0,0.00022766,7]
[391132232,1760383840262,-151.0,0.00022766,7]
[391132233,1760383840271,-151.0,0.00022766,7]
[391132234,1760383840281,-151.0,0.00022766,7]
[391132235,1760383840290,-151.0,0.00022766,7]
[391132237,1760383840300,-151.0,0.00022766,7]
[391132239,1760383840309,-151.0,0.00022766,7]
[391132241,1760383840318,-151.0,0.00022766,7]
[391132242,1760383840327,-151.0,0.00022766,7]
[391132243,1760383840336,-151.0,0.00022766,7]
[391132244,1760383840345,-151.0,0.00022766,7]
[391132245,1760383840355,-151.0,0.00022766,7]
[391132246,1760383840364,-153.01563,0.00022766,7]
[391132247,1760383840374,-151.0,0.00022766,7]
[391132248,1760383840383,-151.253015,0.00022766,7]
[391132249,1760383840392,-151.0,0.00022766,7]
[391132250,1760383840402,-151.0,0.00022766,7]
[391132252,1760383840414,-151.0,0.00022766,7]
[391132253,1760383840423,-151.0,0.00022766,7]
[391132254,1760383840432,-153.611127,0.00022766,7]
[391132255,1760383840442,-152.349513,0.00022766,7]
[391132256,1760383840451,-151.410667,0.00022766,7]
[391132257,1760383840460,-151.0,0.00022766,7]
[391132259,1760383840469,-151.0,0.00022766,7]
[391132261,1760383840479,-151.0,0.00022766,7]
[391132262,1760383840489,-151.0,0.00022766,7]
[391132264,1760383840499,-160.0,0.00022766,7]
[391132266,1760383840507,-151.0,0.00022766,2]
[391132268,1760383840517,-151.0,0.00022766,2]
[391132270,1760383840526,-151.0,0.00022766,7]
[391132271,1760383840535,-151.0,0.00022766,7]
[391132273,1760383840544,-151.0,0.00022766,7]
[391132274,1760383840554,-153.121087,0.00022766,7]
[391132275,1760383840565,-220.686934,0.00022766,7]
[391132276,1760383840574,-166.140222,0.00022766,7]
[391132277,1760383840583,-166.140222,0.00022766,7]
[391132278,1760383840592,-151.0,0.00022766,7]
[391132279,1760383840601,-166.140222,0.00022766,7]
[391132280,1760383840610,-166.140222,0.00022766,7]
[391132281,1760383840619,-151.0,0.00022766,7]
[391132282,1760383840631,-151.0,0.00022766,7]
[391132283,1760383840641,-151.0,0.00022766,7]
[391132284,1760383840652,-151.0,0.00022766,7]
[391132285,1760383840661,-151.0,0.00022766,7]
[391132286,1760383840671,-151.0,0.00022766,7]
[391132287,1760383840681,-151.0,0.00022766,7]
[391132288,1760383840691,-151.0,0.00022766,7]
[391132289,1760383840700,-151.0,0.00022766,7]
[391132290,1760383840709,-151.0,0.00022766,7]
[391132291,1760383840719,-151.64626286,0.00022766,7]
[391132292,1760383840729,-151.0,0.00022766,7]
[391132293,1760383840739,-151.0,0.00022766,7]
[391132294,1760383840749,-151.0,0.00022766,7]
[391132295,1760383840760,-151.0,0.00022766,7]
[391132296,1760383840768,-174.9948,0.00022766,7]
[391132297,1760383840777,-151.0,0.00022766,7]
[391132298,1760383840786,-151.0,0.00022766,7]
[391132299,1760383840795,-151.0,0.00022766,7]
[391132300,1760383840804,-483.763293,0.00022766,7]
[391132301,1760383840812,-151.0,0.00022766,7]
[391132302,1760383840822,-483.763293,0.00022766,7]
[391132303,1760383840831,-483.763293,0.00022766,7]
[391132304,1760383840840,-151.762603,0.00022766,7]
[391132305,1760383840939,-151.0,0.00022766,7]
[391132306,1760383840949,-483.763293,0.00022766,7]
[391132307,1760383840959,-151.0,0.00022766,7]
[391132308,1760383840968,-151.0,0.00022766,7]
[391132309,1760383840978,-151.0,0.00022766,7]
[391132310,1760383840987,-151.0,0.00022766,7]
[391132311,1760383840996,-151.0,0.00022766,7]
[391132312,1760383841005,-284.056383,0.00022766,7]
[391132313,1760383841015,-284.056383,0.00022766,7]
[391132314,1760383841024,-284.056383,0.00022766,7]
[391132315,1760383841033,-284.056383,0.00022766,7]
[391132316,1760383841044,-151.0,0.00022766,7]
[391132317,1760383841054,-151.0,0.00022766,7]
[391132318,1760383841063,-151.0,0.00022766,7]
[391132319,1760383841073,-151.0,0.00022766,7]
[391132320,1760383841083,-151.0,0.00022766,7]
[391132321,1760383841092,-151.0,0.00022766,7]
[391132322,1760383841102,-151.0,0.00022766,7]
[391132323,1760383841112,-151.0,0.00022766,7]
[391132324,1760383841123,-151.0,0.00022766,7]
[391132325,1760383841133,-151.0,0.00022766,7]
[391132326,1760383841142,-151.0,0.00022766,7]
[391132327,1760383841153,-151.0,0.00022766,7]
[391132328,1760383841162,-151.0,0.00022766,7]
[391132329,1760383841171,-151.0,0.00022766,7]
[391132330,1760383841180,-151.0,0.00022766,7]
[391132331,1760383841190,-167.893068,0.00022766,7]
[391132332,1760383841199,-151.410697,0.00022766,7]
[391132333,1760383841209,-151.0,0.00022766,7]
[391132334,1760383841218,-163.49043,0.00022766,7]
[391132335,1760383841228,-151.0,0.00022766,7]
[391132336,1760383841236,-151.0,0.00022766,7]
[391132337,1760383841245,-151.0,0.00022766,7]
[391132338,1760383841254,-163.49043,0.00022766,7]
[391132339,1760383841264,-163.49043,0.00022766,7]
[391132340,1760383841276,-163.49043,0.00022766,7]
[391132341,1760383841286,-151.0,0.00022766,7]
[391132342,1760383841295,-151.0,0.00022766,7]
[391132343,1760383841306,-151.0,0.00022766,7]
[391132344,1760383841317,-151.0,0.00022766,7]
[391132345,1760383841326,-151.0,0.00022766,7]
[391132346,1760383841336,-151.0,0.00022766,7]
[391132347,1760383841345,-151.0,0.00022766,7]
[391132348,1760383841354,-151.0,0.00022766,7]
[391132349,1760383841363,-382.250119,0.00022766,7]
[391132350,1760383841373,-151.220237,0.00022766,7]
[391132351,1760383841382,-382.250119,0.00022766,7]
[391132352,1760383841391,-191.813138,0.00022766,7]
[391132353,1760383841402,-382.250119,0.00022766,7]
[391132354,1760383841415,-191.813138,0.00022766,7]
[391132355,1760383841424,-382.250119,0.00022766,7]
[391132356,1760383841433,-191.813138,0.00022766,7]
[391132357,1760383841443,-200.004155,0.00022766,7]
[391132358,1760383841453,-191.813138,0.00022766,7]
[391132359,1760383841463,-151.0,0.00022766,7]
[391132360,1760383841472,-151.0,0.00022766,7]
[391132361,1760383841481,-156.495404,0.00022766,7]
[391132362,1760383841491,-151.0,0.00022766,7]
[391132363,1760383841500,-151.0,0.00022766,7]
[391132364,1760383841509,-151.0,0.00022766,7]
[391132365,1760383841519,-151.0,0.00022766,7]
[391132366,1760383841531,-151.0,0.00022766,7]
[391132367,1760383841541,-151.0,0.00022766,7]
[391132368,1760383841550,-2759.278485,0.00022766,7]
[391132369,1760383841559,-151.0,0.00022766,7]
[391132370,1760383841568,-151.0,0.00022766,7]
[391132371,1760383841577,-2759.278485,0.00022766,7]
[391132372,1760383841586,-151.0,0.00022766,7]
[391132373,1760383841596,-2759.278485,0.00022766,7]
[391132374,1760383841605,-2759.278485,0.00022766,7]
[391132375,1760383841615,-151.0,0.00022766,7]
[391132376,1760383841623,-151.0,0.00022766,7]
[391132377,1760383841633,-154.903651,0.00022766,7]
[391132378,1760383841642,-151.0,0.00022766,7]
[391132379,1760383841653,-151.0,0.00022766,7]
[391132380,1760383841662,-151.0,0.00022766,7]
[391132381,1760383841672,-151.0,0.00022766,7]
[391132382,1760383841681,-151.0,0.00022766,7]
[391132383,1760383841690,-151.638751,0.00022766,7]
[391132384,1760383841699,-151.0,0.00022766,7]
[391132385,1760383841709,-151.0,0.00022766,7]
[391132386,1760383841718,-151.0,0.00022766,7]
[391132387,1760383841728,-370000.0,0.00022766,2]
[391132388,1760383841737,-500.0,0.00022766,5]
[391132389,1760383841747,-500.0,0.00022766,5]
[391132390,1760383841757,-500.0,0.00022773,2]
[391132391,1760383841767,-500.0,0.00022773,2]
[391132392,1760383841776,-500.0,0.00022773,2]
[391132393,1760383841785,-500.0,0.00022773,2]
[391132394,1760383841794,-500.94873512,0.00022773,2]
[391132395,1760383841803,-500.0,0.00022773,2]
[391132396,1760383841813,-500.0,0.00022773,2]
[391132397,1760383841823,-500.52527288,0.00022773,2]
[391132398,1760383841833,-500.0,0.00022773,2]
[391132399,1760383841843,-501.85708649,0.00022773,2]
[391132400,1760383841852,-500.0,0.00022773,2]
[391132401,1760383841862,-588.24634035,0.00022773,2]
[391132402,1760383841871,-500.30925585,0.00022773,2]
[391132403,1760383841881,-500.0,0.00022773,2]
[391132404,1760383841891,-501.0437304,0.00022773,2]
[391132405,1760383841901,-501.46025524,0.00022773,2]
[391132406,1760383841911,-416.63157509,0.00022773,2]
[391132407,1760383841921,-501.13979543,0.00022773,2]
[391132408,1760383841930,-644.66218255,0.00022773,2]
[391132409,1760383841940,-500.0,0.00022773,2]
[391132410,1760383841950,-500.0,0.00022773,2]
[391132411,1760383841959,-500.0,0.00022773,2]
[391132412,1760383841969,-500.0,0.00022773,2]
[391132413,1760383841978,-150.0,0.00022773,2]
[391132414,1760383841988,-500.0,0.00022773,2]
[391132415,1760383841997,-500.0,0.00022773,2]
[391132416,1760383842007,-500.0,0.00022773,2]
[391132417,1760383842016,-500.0,0.00022773,2]
[391132418,1760383842025,-500.0,0.00022773,2]
[391132419,1760383842034,-500.0,0.00022773,2]
[391132420,1760383842044,-500.0,0.00022773,2]
[391132421,1760383842054,-284.23632863,0.00022776,2]
[391132422,1760383842063,-21373.63,0.000228,7]
[391132423,1760383842072,-318.93407856,0.000228,7]
[391132424,1760383842082,-402.34485587,0.000228,7]
[391132425,1760383842091,-1001.969663,0.000228,2]
[391132426,1760383842100,-151.0,0.000228,5]
[391132427,1760383842110,-500.0,0.00022811,2]
[391132428,1760383842119,-217.5,0.00022857,2]
[391132429,1760383842129,-151.0,0.000229,9]
[391132430,1760383842138,-300.0,0.0002291,2]
[391132431,1760383842149,-806.73,0.00022949,2]
[391132432,1760383842158,-1351.34056548,0.00022969,2]
[391132433,1760383842167,-160.0,0.00023,3]
[391132434,1760383842176,-11097.17677636,0.00023,3]
[391132435,1760383842185,-160.0,0.00023,2]
[391132436,1760383842195,-28106.03001063,0.00023,3]
[391132437,1760383842204,-28106.01,0.00023001,3]
[391132438,1760383842213,-261.837899,0.00023014,2]
[391132439,1760383842222,-1351.34056548,0.00023029,2]
[391132440,1760383842232,-500.0,0.0002304,5]
[391132441,1760383842241,-500.0,0.0002304,5]
[391132442,1760383842249,-500.0,0.0002304,5]
[391132443,1760383842258,-450.0,0.00023047,2]
[391132444,1760383842267,-800.0,0.00023051,2]
[391132445,1760383842276,-151.0,0.00023068,7]
[391132446,1760383842286,-151.0,0.00023068,7]
[391132447,1760383842295,-151.0,0.00023068,7]
[391132448,1760383842305,-188.469558,0.00023068,7]
[391132449,1760383842314,-151.0,0.00023068,7]
[391132450,1760383842324,-151.00000003,0.00023068,7]
[391132451,1760383842333,-241.571953,0.00023068,7]
[391132452,1760383842343,-1000.0,0.00023068,2]
[391132453,1760383842352,-1247.19281656,0.00023068,2]
[391132454,1760383842361,-1500.0,0.00023068,2]
[391132455,1760383842370,-941.23557246,0.00023068,2]
[391132456,1760383842379,-1002.02972003,0.00023068,2]
[391132457,1760383842388,-500.0,0.00023068,2]
[391132458,1760383842399,-1505.46787646,0.00023068,2]
[391132459,1760383842411,-1372.71606127,0.00023068,2]
[391132460,1760383842420,-1500.0,0.00023068,2]
[391132461,1760383842429,-1500.0,0.00023068,2]
[391132462,1760383842438,-629.36201742,0.00023068,2]
[391132463,1760383842447,-1500.0,0.00023068,2]
[391132464,1760383842457,-160.0,0.00023071,2]
[391132465,1760383842466,-500.0,0.00023085,2]
[391132466,1760383842475,-151.0,0.000231,8]
[391132467,1760383842486,-2179.05547322,0.00023108,2]
[391132468,1760383842495,-196.5,0.00023155,2]
[391132469,1760383842504,-1000.0,0.00023173,2]
[391132470,1760383842514,-1000.0,0.00023173,2]
[391132471,1760383842522,-151.0,0.00023173,2]
[391132472,1760383842532,-1000.0,0.00023173,2]
[391132473,1760383842541,-1000.0,0.00023173,2]
[391132474,1760383842550,-18603.8837,0.00023173,2]
[391132475,1760383842559,-151.29537302,0.00023173,2]
[391132476,1760383842569,-250.0,0.00023173,2]
[391132477,1760383842578,-500.0,0.00023173,2]
[391132478,1760383842587,-1000.0,0.00023173,2]
[391132479,1760383842596,-1000.0,0.00023173,2]
[391132480,1760383842605,-151.0,0.00023173,2]
[391132481,1760383842615,-2030.296672,0.00023173,2]
[391132482,1760383842623,-500.0,0.00023173,2]
[391132483,1760383842632,-1000.0,0.00023173,2]
[391132484,1760383842642,-1000.0,0.00023173,2]
[391132485,1760383842657,-250.0,0.00023173,2]
[391132486,1760383842667,-500.0,0.00023173,2]
[391132487,1760383842676,-1000.0,0.00023173,2]
[391132488,1760383842685,-250.0,0.00023173,2]
[391132489,1760383842694,-2616.20294735,0.00023173,2]
[391132490,1760383842704,-500.0,0.00023173,2]
[391132491,1760383842713,-1000.0,0.00023173,2]
[391132492,1760383842723,-1000.0,0.00023173,2]
[391132493,1760383842732,-250.0,0.00023173,2]
[391132494,1760383842742,-506.31908248,0.00023173,2]
[391132495,1760383842751,-1000.0,0.00023173,2]
[391132496,1760383842762,-1000.0,0.00023173,2]
[391132497,1760383842771,-250.0,0.00023173,2]
[391132498,1760383842781,-159.76104844,0.00023173,2]
[391132499,1760383842790,-1000.0,0.00023173,2]
[391132500,1760383842800,-1000.0,0.00023173,2]
[391132501,1760383842809,-250.0,0.00023173,2]
[391132502,1760383842818,-1000.0,0.00023173,2]
[391132503,1760383842828,-1000.0,0.00023173,2]
[391132504,1760383842837,-250.0,0.00023173,2]
[391132505,1760383842847,-1000.0,0.00023173,2]
[391132506,1760383842857,-1059.83545257,0.00023173,2]
[391132507,1760383842868,-250.0,0.00023173,2]
[391132508,1760383842878,-1000.0,0.00023173,2]
[391132509,1760383842889,-250.0,0.00023173,2]
[391132510,1760383842906,-1000.0,0.00023173,2]
[391132511,1760383842916,-250.0,0.00023173,2]
[391132512,1760383842927,-151.0,0.00023173,2]
[391132513,1760383842938,-250.0,0.00023173,2]
[391132514,1760383842949,-162.380719,0.00023173,2]
[391132515,1760383842959,-1000.0,0.00023173,2]
[391132517,1760383842968,-151.0,0.00023173,2]
[391132518,1760383842978,-157.17818341,0.00023173,2]
[391132519,1760383842987,-250.0,0.00023173,2]
[391132520,1760383842997,-1078.42669778,0.00023173,2]
[391132521,1760383843007,-151.0,0.00023173,2]
[391132522,1760383843016,-151.0,0.00023173,2]
[391132523,1760383843025,-151.0,0.00023173,2]
[391132524,1760383843035,-151.0,0.00023173,2]
[391132525,1760383843044,-151.0,0.00023173,2]
[391132526,1760383843054,-151.0,0.00023173,2]
[391132527,1760383843063,-250.0,0.00023173,2]
[391132528,1760383843072,-151.0,0.00023173,2]
[391132529,1760383843081,-250.0,0.00023173,2]
[391132530,1760383843090,-151.0,0.00023173,2]
[391132531,1760383843100,-250.0,0.00023173,2]
[391132532,1760383843109,-151.0,0.00023173,2]
[391132533,1760383843118,-250.0,0.00023173,2]
[391132534,1760383843127,-151.0,0.00023173,2]
[391132535,1760383843136,-250.0,0.00023173,2]
[391132536,1760383843147,-253.0383707,0.00023173,2]
[391132537,1760383843156,-250.0,0.00023173,2]
[391132538,1760383843166,-250.0,0.00023173,2]
[391132539,1760383843175,-500.0,0.00023173,2]
[391132540,1760383843185,-500.0,0.00023173,2]
[391132541,1760383843195,-250.0,0.00023173,2]
[391132543,1760383843290,-504.76891941,0.00023173,2]
[391132544,1760383843300,-250.0,0.00023173,2]
[391132545,1760383843310,-250.0,0.00023173,2]
[391132546,1760383843319,-250.0,0.00023173,2]
[391132548,1760383843328,-250.0,0.00023173,2]
[391132550,1760383843338,-250.0,0.00023173,2]
[391132552,1760383843347,-250.0,0.00023173,2]
[391132553,1760383843356,-250.0,0.00023173,2]
[391132554,1760383843366,-250.0,0.00023173,2]
[391132555,1760383843374,-250.0,0.00023173,2]
[391132556,1760383843383,-250.0,0.00023173,2]
[391132557,1760383843392,-162.380719,0.00023173,2]
[391132558,1760383843404,-600.0,0.00023184,2]
[391132559,1760383843419,-800.0,0.00023199,2]
[391132560,1760383843428,-151.0,0.000232,6]
[391132561,1760383843436,-800.0,0.00023207,2]
[391132562,1760383843446,-1322.4402086,0.00023228,2]
[391132563,1760383843457,-737.3169938,0.00023261,2]
[391132564,1760383843466,-4604.8949649,0.00023261,2]
[391132565,1760383843475,-445.1005628,0.00023261,2]
[391132566,1760383843484,-1000.0,0.000233,2]
[391132567,1760383843494,-151.0,0.00023301,7]
[391132568,1760383843503,-151.0,0.00023301,7]
[391132569,1760383843513,-151.96073,0.00023301,7]
[391132570,1760383843521,-151.0,0.00023301,7]
[391132571,1760383843531,-151.0,0.00023301,7]
[391132573,1760383843540,-151.0,0.00023301,7]
[391132575,1760383843549,-151.0,0.00023301,7]
[391132577,1760383843558,-151.0,0.00023301,7]
[391132579,1760383843567,-151.0,0.00023301,7]
[391132581,1760383843575,-151.0,0.00023301,7]
[391132583,1760383843584,-151.0,0.00023301,7]
[391132585,1760383843593,-151.0,0.00023301,7]
[391132587,1760383843602,-151.0,0.00023301,7]
[391132589,1760383843611,-151.0,0.00023301,7]
[391132591,1760383843620,-151.0,0.00023301,7]
[391132593,1760383843629,-151.0,0.00023301,7]
[391132595,1760383843638,-151.0,0.00023301,7]
[391132597,1760383843649,-151.0,0.00023301,7]
[391132599,1760383843658,-151.0,0.00023301,7]
[391132601,1760383843667,-151.0,0.00023301,2]
[391132603,1760383843676,-151.0,0.00023301,7]
[391132605,1760383843684,-151.0,0.00023301,2]
[391132607,1760383843694,-154.503041,0.00023301,7]
[391132608,1760383843703,-166.195044,0.00023301,7]
[391132610,1760383843711,-166.195044,0.00023301,7]
[391132612,1760383843720,-166.195044,0.00023301,7]
[391132614,1760383843729,-166.195044,0.00023301,7]
[391132616,1760383843739,-152.586612,0.00023301,7]
[391132618,1760383843747,-151.0,0.00023301,7]
[391132620,1760383843757,-151.0,0.00023301,7]
[391132622,1760383843766,-151.0,0.00023301,7]
[391132624,1760383843775,-166.140222,0.00023301,7]
[391132626,1760383843785,-166.140222,0.00023301,7]
[391132628,1760383843795,-166.140222,0.00023301,7]
[391132631,1760383843805,-166.140222,0.00023301,7]
[391132634,1760383843815,-151.0,0.00023301,7]
[391132637,1760383843825,-151.0,0.00023301,7]
[391132639,1760383843835,-151.0,0.00023301,7]
[391132641,1760383843845,-151.0,0.00023301,7]
[391132643,1760383843854,-151.0,0.00023301,7]
[391132645,1760383843864,-296.796233,0.00023301,7]
[391132647,1760383843873,-151.0,0.00023301,7]
[391132649,1760383843883,-158.916977,0.00023301,7]
[391132651,1760383843892,-151.0,0.00023301,7]
[391132653,1760383843905,-151.299351,0.00023301,7]
[391132655,1760383843913,-151.0,0.00023301,7]
[391132657,1760383843923,-152.866507,0.00023301,7]
[391132659,1760383843932,-151.0,0.00023301,7]
[391132661,1760383843940,-151.0,0.00023301,7]
[391132663,1760383843950,-151.353346,0.00023301,7]
[391132665,1760383843958,-151.0,0.00023301,7]
[391132667,1760383843968,-483.763293,0.00023301,7]
[391132669,1760383843976,-151.0,0.00023301,7]
[391132671,1760383843986,-483.763293,0.00023301,7]
[391132673,1760383843995,-483.763293,0.00023301,7]
[391132675,1760383844004,-151.0,0.00023301,7]
[391132677,1760383844013,-483.763293,0.00023301,7]
[391132678,1760383844022,-151.0,0.00023301,7]
[391132680,1760383844031,-151.0,0.00023301,7]
[391132682,1760383844041,-151.0,0.00023301,7]
[391132684,1760383844050,-250.984932,0.00023301,7]
[391132686,1760383844059,-151.0,0.00023301,7]
[391132688,1760383844069,-284.056383,0.00023301,7]
[391132690,1760383844078,-284.056383,0.00023301,7]
[391132692,1760383844088,-284.056383,0.00023301,7]
[391132694,1760383844097,-284.056383,0.00023301,7]
[391132696,1760383844107,-151.0,0.00023301,7]
[391132698,1760383844116,-151.0,0.00023301,7]
[391132700,1760383844126,-151.0,0.00023301,7]
[391132702,1760383844135,-151.0,0.00023301,7]
[391132704,1760383844144,-151.0,0.00023301,7]
[391132706,1760383844154,-151.547193,0.00023301,7]
[391132708,1760383844163,-151.0,0.00023301,7]
[391132710,1760383844172,-155.623921,0.00023301,7]
[391132712,1760383844181,-151.0,0.00023301,7]
[391132714,1760383844191,-151.0,0.00023301,7]
[391132716,1760383844200,-151.0,0.00023301,7]
[391132718,1760383844209,-151.0,0.00023301,7]
[391132720,1760383844218,-151.0,0.00023301,7]
[391132722,1760383844227,-151.0,0.00023301,7]
[391132724,1760383844236,-151.0,0.00023301,7]
[391132726,1760383844245,-151.913229,0.00023301,7]
[391132728,1760383844254,-163.49043,0.00023301,7]
[391132730,1760383844263,-151.0,0.00023301,7]
[391132732,1760383844272,-151.0,0.00023301,7]
[391132734,1760383844281,-151.0,0.00023301,7]
[391132736,1760383844290,-163.49043,0.00023301,7]
[391132738,1760383844299,-163.49043,0.00023301,7]
[391132740,1760383844307,-163.49043,0.00023301,7]
[391132742,1760383844318,-151.0,0.00023301,7]
[391132744,1760383844327,-151.0,0.00023301,7]
[391132746,1760383844336,-151.314445,0.00023301,7]
[391132748,1760383844345,-151.0,0.00023301,7]
[391132750,1760383844354,-201.036115,0.00023301,7]
[391132752,1760383844363,-151.0,0.00023301,7]
[391132754,1760383844372,-151.0,0.00023301,7]
[391132756,1760383844381,-151.0,0.00023301,7]
[391132758,1760383844390,-382.250119,0.00023301,7]
[391132759,1760383844401,-382.250119,0.00023301,7]
[391132761,1760383844415,-191.813138,0.00023301,7]
[391132763,1760383844424,-382.250119,0.00023301,7]
[391132765,1760383844433,-191.813138,0.00023301,7]
[391132767,1760383844442,-382.250119,0.00023301,7]
[391132769,1760383844451,-191.813138,0.00023301,7]
[391132771,1760383844460,-191.813138,0.00023301,7]
[391132773,1760383844469,-151.0,0.00023301,7]
[391132775,1760383844478,-151.0,0.00023301,7]
[391132777,1760383844490,-151.0,0.00023301,7]
[391132779,1760383844500,-151.0,0.00023301,7]
[391132781,1760383844509,-151.0,0.00023301,7]
[391132783,1760383844519,-151.605628,0.00023301,7]
[391132785,1760383844528,-151.0,0.00023301,7]
[391132787,1760383844537,-151.0,0.00023301,7]
[391132789,1760383844546,-2759.278485,0.00023301,7]
[391132791,1760383844555,-151.0,0.00023301,7]
[391132793,1760383844565,-2759.278485,0.00023301,7]
[391132795,1760383844574,-151.0,0.00023301,7]
[391132797,1760383844583,-2759.278485,0.00023301,7]
[391132799,1760383844592,-2759.278485,0.00023301,7]
[391132801,1760383844601,-151.0,0.00023301,7]
[391132803,1760383844610,-151.0,0.00023301,7]
[391132805,1760383844619,-500.0,0.00023314,5]
[391132807,1760383844628,-500.0,0.00023321,2]
[391132809,1760383844637,-501.39190621,0.00023321,2]
[391132811,1760383844648,-500.0,0.00023321,2]
[391132813,1760383844657,-500.13300599,0.00023321,2]
[391132815,1760383844666,-432.33795975,0.00023321,2]
[391132817,1760383844675,-1000.0,0.00023321,2]
[391132819,1760383844684,-500.0,0.00023321,2]
[391132821,1760383844693,-501.35948073,0.00023321,2]
[391132823,1760383844703,-1000.0,0.00023321,2]
[391132825,1760383844712,-544.49279139,0.00023321,2]
[391132827,1760383844721,-500.0,0.00023321,2]